[Event "Late-Titled-Tuesday-Blitz-March-12-2024"]
[Site "Chess.com"]
[Date "2024.03.12"]
[Round "9"]
[White "Willhaven3"]
[Black "ccccvhhhj"]
[Result "0-1"]
[WhiteElo "2620"]
[BlackElo "2491"]
[TimeControl "180+1"]
[EndTime "15:42:39 PDT"]
[Termination "ccccvhhhj won by checkmate"]

1. e4 {[%clk 0:03:00.9]} 1... e6 {[%clk 0:03:00.1]} 2. b3 {[%clk 0:03:00]} 2...
d5 {[%clk 0:03:01]} 3. Bb2 {[%clk 0:03:00.4]} 3... dxe4 {[%clk 0:03:01.4]} 4.
Nc3 {[%clk 0:03:00.8]} 4... Nf6 {[%clk 0:03:02]} 5. Qe2 {[%clk 0:03:01.2]} 5...
Nc6 {[%clk 0:03:02.6]} 6. Nxe4 {[%clk 0:03:01.6]} 6... Nd4 {[%clk 0:03:02]} 7.
Qd3 {[%clk 0:03:01.5]} 7... e5 {[%clk 0:03:01.8]} 8. O-O-O {[%clk 0:02:50.9]}
8... Be7 {[%clk 0:02:59.6]} 9. Nf3 {[%clk 0:02:42.9]} 9... Nxf3 {[%clk
0:02:56.1]} 10. Qxf3 {[%clk 0:02:41.9]} 10... O-O {[%clk 0:02:19.2]} 11. Bd3
{[%clk 0:02:36.1]} 11... Kh8 {[%clk 0:01:12.2]} 12. h3 {[%clk 0:02:35.2]} 12...
Bd6 {[%clk 0:00:55.4]} 13. Nxf6 {[%clk 0:02:19.2]} 13... Qxf6 {[%clk 0:00:56.3]}
14. Qxf6 {[%clk 0:02:19.4]} 14... gxf6 {[%clk 0:00:57.2]} 15. f4 {[%clk
0:02:19.5]} 15... Bd7 {[%clk 0:00:53.5]} 16. g4 {[%clk 0:02:13.9]} 16... Rae8
{[%clk 0:00:50.3]} 17. Rde1 {[%clk 0:02:10.9]} 17... Bc6 {[%clk 0:00:48.2]} 18.
Be4 {[%clk 0:02:03.2]} 18... Bxe4 {[%clk 0:00:42.7]} 19. Rxe4 {[%clk 0:02:04.1]}
19... Kg7 {[%clk 0:00:39.5]} 20. g5 {[%clk 0:01:49.3]} 20... Kg6 {[%clk
0:00:25.8]} 21. gxf6 {[%clk 0:01:44.7]} 21... exf4 {[%clk 0:00:22.9]} 22. Rxe8
{[%clk 0:00:52.4]} 22... Rxe8 {[%clk 0:00:23.8]} 23. Kd1 {[%clk 0:00:52.9]}
23... Be5 {[%clk 0:00:19.1]} 24. Re1 {[%clk 0:00:36.5]} 24... Kxf6 {[%clk
0:00:19.5]} 25. d4 {[%clk 0:00:36.4]} 25... Rg8 {[%clk 0:00:06.3]} 26. dxe5+
{[%clk 0:00:35.9]} 26... Kf5 {[%clk 0:00:06.1]} 27. Re2 {[%clk 0:00:31]} 27...
Rg3 {[%clk 0:00:05.1]} 28. Rh2 {[%clk 0:00:29.9]} 28... Ke4 {[%clk 0:00:03.5]}
29. Ke2 {[%clk 0:00:29.6]} 29... Re3+ {[%clk 0:00:03.7]} 30. Kf2 {[%clk
0:00:29.7]} 30... Rf3+ {[%clk 0:00:04.4]} 31. Ke2 {[%clk 0:00:28.4]} 31... Re3+
{[%clk 0:00:04.7]} 32. Kd2 {[%clk 0:00:28.7]} 32... Rg3 {[%clk 0:00:04.6]} 33.
Bc1 {[%clk 0:00:26.9]} 33... f3 {[%clk 0:00:04.2]} 34. c4 {[%clk 0:00:21.4]}
34... Rg2+ {[%clk 0:00:03.8]} 35. Kc3 {[%clk 0:00:19]} 35... Rxh2 {[%clk
0:00:03.7]} 36. e6 {[%clk 0:00:19.8]} 36... fxe6 {[%clk 0:00:03.6]} 37. Bg5
{[%clk 0:00:18.9]} 37... f2 {[%clk 0:00:03.6]} 38. Bd2 {[%clk 0:00:16.8]} 38...
f1=Q {[%clk 0:00:03.6]} 39. Kb4 {[%clk 0:00:16.4]} 39... Qd3 {[%clk 0:00:04.5]}
40. Bc3 {[%clk 0:00:16.2]} 40... Qd6+ {[%clk 0:00:04.9]} 41. c5 {[%clk
0:00:16.1]} 41... a5+ {[%clk 0:00:05.8]} 42. Kb5 {[%clk 0:00:16]} 42... Qc6+
{[%clk 0:00:06.3]} 43. Kc4 {[%clk 0:00:16.5]} 43... b5# {[%clk 0:00:06]} 0-1

[Event "Late-Titled-Tuesday-Blitz-March-12-2024"]
[Site "Chess.com"]
[Date "2024.03.12"]
[Round "9"]
[White "Slovak_fighter2000"]
[Black "Eloist"]
[Result "0-1"]
[WhiteElo "2611"]
[BlackElo "2488"]
[TimeControl "180+1"]
[EndTime "15:42:49 PDT"]
[Termination "Eloist won by checkmate"]

1. c4 {[%clk 0:02:59.4]} 1... e5 {[%clk 0:03:00.1]} 2. Nc3 {[%clk 0:02:59.4]}
2... Nf6 {[%clk 0:03:00.3]} 3. Nf3 {[%clk 0:02:59.4]} 3... Nc6 {[%clk
0:03:00.2]} 4. e3 {[%clk 0:02:57.6]} 4... Bb4 {[%clk 0:02:58.5]} 5. Qc2 {[%clk
0:02:56.6]} 5... d6 {[%clk 0:02:54]} 6. Nd5 {[%clk 0:02:46.9]} 6... Bc5 {[%clk
0:02:51.8]} 7. a3 {[%clk 0:02:43.3]} 7... Bb6 {[%clk 0:02:49.7]} 8. b4 {[%clk
0:02:24.3]} 8... Nxd5 {[%clk 0:02:48.3]} 9. cxd5 {[%clk 0:02:25.2]} 9... Ne7
{[%clk 0:02:48.7]} 10. Bc4 {[%clk 0:02:21.8]} 10... O-O {[%clk 0:02:40.8]} 11.
d3 {[%clk 0:02:17.5]} 11... Bg4 {[%clk 0:02:37.9]} 12. Nd2 {[%clk 0:01:54.6]}
12... c6 {[%clk 0:02:35.8]} 13. dxc6 {[%clk 0:01:50]} 13... bxc6 {[%clk
0:02:35.8]} 14. h3 {[%clk 0:01:49.5]} 14... Bh5 {[%clk 0:02:31.2]} 15. Bb2
{[%clk 0:01:46.2]} 15... a5 {[%clk 0:02:21.7]} 16. g4 {[%clk 0:01:31.8]} 16...
Bg6 {[%clk 0:02:21.1]} 17. Bb3 {[%clk 0:01:29.4]} 17... axb4 {[%clk 0:02:18.7]}
18. axb4 {[%clk 0:01:29.6]} 18... Rxa1+ {[%clk 0:02:19.5]} 19. Bxa1 {[%clk
0:01:30.5]} 19... c5 {[%clk 0:02:14.3]} 20. bxc5 {[%clk 0:01:26.5]} 20... Qa8
{[%clk 0:02:14.1]} 21. O-O {[%clk 0:01:02.9]} 21... Bxc5 {[%clk 0:02:12.8]} 22.
Ne4 {[%clk 0:00:56.6]} 22... Rc8 {[%clk 0:02:06.2]} 23. Qe2 {[%clk 0:00:40]}
23... Bxe4 {[%clk 0:02:02]} 24. dxe4 {[%clk 0:00:39.7]} 24... Qxe4 {[%clk
0:02:00.9]} 25. Bc2 {[%clk 0:00:33.7]} 25... Qc6 {[%clk 0:01:53.4]} 26. Bd3
{[%clk 0:00:25.4]} 26... Ng6 {[%clk 0:01:51]} 27. Bxg6 {[%clk 0:00:19.9]} 27...
hxg6 {[%clk 0:01:50.7]} 28. Rd1 {[%clk 0:00:20.1]} 28... Qe4 {[%clk 0:01:44.1]}
29. Kh2 {[%clk 0:00:13.9]} 29... d5 {[%clk 0:01:37.5]} 30. f3 {[%clk 0:00:12.8]}
30... Qxe3 {[%clk 0:01:35.8]} 31. Qxe3 {[%clk 0:00:13.3]} 31... Bxe3 {[%clk
0:01:36]} 32. Bxe5 {[%clk 0:00:10.2]} 32... d4 {[%clk 0:01:30]} 33. Rd3 {[%clk
0:00:05.6]} 33... Rc4 {[%clk 0:01:21.9]} 34. Kg2 {[%clk 0:00:05]} 34... f6
{[%clk 0:01:22]} 35. Bg3 {[%clk 0:00:04.8]} 35... Rc2+ {[%clk 0:01:20.6]} 36.
Kf1 {[%clk 0:00:05.2]} 36... g5 {[%clk 0:01:18]} 37. Ra3 {[%clk 0:00:05.4]}
37... Kf7 {[%clk 0:01:17.4]} 38. Ra7+ {[%clk 0:00:05.5]} 38... Ke6 {[%clk
0:01:16.9]} 39. Ra3 {[%clk 0:00:03.8]} 39... Kd5 {[%clk 0:01:16.1]} 40. h4
{[%clk 0:00:03.4]} 40... gxh4 {[%clk 0:01:12.7]} 41. Bxh4 {[%clk 0:00:04.3]}
41... Kc4 {[%clk 0:01:10.8]} 42. Be1 {[%clk 0:00:04.6]} 42... Rc1 {[%clk
0:01:07.5]} 43. Ke2 {[%clk 0:00:04.6]} 43... d3+ {[%clk 0:01:05]} 44. Rxd3
{[%clk 0:00:03]} 44... Rxe1+ {[%clk 0:01:04.6]} 45. Kxe1 {[%clk 0:00:03.5]}
45... Kxd3 {[%clk 0:01:04.9]} 46. Kf1 {[%clk 0:00:04.4]} 46... Bd4 {[%clk
0:01:03.7]} 47. Kg2 {[%clk 0:00:05.3]} 47... Ke2 {[%clk 0:01:02.9]} 48. Kg3
{[%clk 0:00:06.2]} 48... g5 {[%clk 0:01:01.5]} 49. f4 {[%clk 0:00:06.7]} 49...
Ke3 {[%clk 0:00:57.7]} 50. fxg5 {[%clk 0:00:06.4]} 50... fxg5 {[%clk 0:00:57.5]}
51. Kg2 {[%clk 0:00:06.3]} 51... Kf4 {[%clk 0:00:57]} 52. Kh3 {[%clk 0:00:06.9]}
52... Kf3 {[%clk 0:00:57]} 53. Kh2 {[%clk 0:00:07.4]} 53... Kxg4 {[%clk
0:00:57.2]} 54. Kg2 {[%clk 0:00:07.4]} 54... Kf4 {[%clk 0:00:56.6]} 55. Kh1
{[%clk 0:00:07.8]} 55... g4 {[%clk 0:00:56.7]} 56. Kg2 {[%clk 0:00:08.4]} 56...
Be3 {[%clk 0:00:53.4]} 57. Kh1 {[%clk 0:00:09.3]} 57... Kf3 {[%clk 0:00:52.8]}
58. Kh2 {[%clk 0:00:09.2]} 58... g3+ {[%clk 0:00:51.8]} 59. Kh3 {[%clk
0:00:10.1]} 59... g2 {[%clk 0:00:51.3]} 60. Kh4 {[%clk 0:00:11]} 60... g1=Q
{[%clk 0:00:50.7]} 61. Kh5 {[%clk 0:00:11.9]} 61... Qg5# {[%clk 0:00:50.6]} 0-1

[Event "Late-Titled-Tuesday-Blitz-March-12-2024"]
[Site "Chess.com"]
[Date "2024.03.12"]
[Round "9"]
[White "Roedor"]
[Black "IranianCheetah"]
[Result "1/2-1/2"]
[WhiteElo "2277"]
[BlackElo "2368"]
[TimeControl "180+1"]
[EndTime "15:42:50 PDT"]
[Termination "Game drawn - insufficient material"]

1. c4 {[%clk 0:02:59.9]} 1... e5 {[%clk 0:02:14.5]} 2. g3 {[%clk 0:02:56.9]}
2... g6 {[%clk 0:02:14.5]} 3. Bg2 {[%clk 0:02:56.7]} 3... Bg7 {[%clk 0:02:15.4]}
4. Nc3 {[%clk 0:02:55.5]} 4... Nc6 {[%clk 0:02:14.3]} 5. d3 {[%clk 0:02:55]}
5... Nge7 {[%clk 0:02:14.7]} 6. e3 {[%clk 0:02:48.3]} 6... O-O {[%clk 0:02:15]}
7. Nge2 {[%clk 0:02:48.7]} 7... d6 {[%clk 0:02:14.4]} 8. O-O {[%clk 0:02:48.8]}
8... Bg4 {[%clk 0:02:12]} 9. h3 {[%clk 0:02:48.6]} 9... Bxe2 {[%clk 0:02:11.6]}
10. Qxe2 {[%clk 0:02:49.5]} 10... f5 {[%clk 0:02:06.1]} 11. Nd5 {[%clk 0:02:49]}
11... Nxd5 {[%clk 0:02:03.9]} 12. Bxd5+ {[%clk 0:02:48.7]} 12... Kh8 {[%clk
0:02:03.8]} 13. f4 {[%clk 0:02:44.7]} 13... exf4 {[%clk 0:02:02.5]} 14. gxf4
{[%clk 0:02:42.6]} 14... Rb8 {[%clk 0:02:01.2]} 15. Rb1 {[%clk 0:02:33.7]} 15...
Nb4 {[%clk 0:01:55.4]} 16. Bd2 {[%clk 0:02:29.7]} 16... Nxd5 {[%clk 0:01:53.4]}
17. cxd5 {[%clk 0:02:30.6]} 17... c5 {[%clk 0:01:53.3]} 18. Bc3 {[%clk
0:02:29.3]} 18... b5 {[%clk 0:01:48.4]} 19. e4 {[%clk 0:02:26.8]} 19... Re8
{[%clk 0:01:37.5]} 20. Rbe1 {[%clk 0:02:22.9]} 20... Qh4 {[%clk 0:01:36.1]} 21.
Kg2 {[%clk 0:02:17.1]} 21... c4 {[%clk 0:01:25.2]} 22. Bxg7+ {[%clk 0:02:14.8]}
22... Kxg7 {[%clk 0:01:25.4]} 23. e5 {[%clk 0:02:10.2]} 23... dxe5 {[%clk
0:01:17.1]} 24. fxe5 {[%clk 0:02:08.7]} 24... Qd4 {[%clk 0:01:14.9]} 25. d6
{[%clk 0:01:27.5]} 25... cxd3 {[%clk 0:00:58.7]} 26. Qe3 {[%clk 0:01:27.1]}
26... Qxb2+ {[%clk 0:00:28.9]} 27. Rf2 {[%clk 0:01:22.8]} 27... Qc3 {[%clk
0:00:29.3]} 28. e6 {[%clk 0:01:15.4]} 28... Qc6+ {[%clk 0:00:29.1]} 29. Qf3
{[%clk 0:01:07.1]} 29... Qxd6 {[%clk 0:00:29.2]} 30. Rd1 {[%clk 0:01:03.6]}
30... Rbd8 {[%clk 0:00:28.4]} 31. Rfd2 {[%clk 0:00:56]} 31... Qxe6 {[%clk
0:00:28.1]} 32. Rxd3 {[%clk 0:00:55.7]} 32... Rxd3 {[%clk 0:00:25.4]} 33. Rxd3
{[%clk 0:00:55.9]} 33... Qe2+ {[%clk 0:00:25.1]} 34. Kg3 {[%clk 0:00:53]} 34...
Qxf3+ {[%clk 0:00:22.2]} 35. Kxf3 {[%clk 0:00:53.9]} 35... Re7 {[%clk
0:00:20.7]} 36. h4 {[%clk 0:00:53.2]} 36... a5 {[%clk 0:00:15.7]} 37. Rd5 {[%clk
0:00:50.1]} 37... Rb7 {[%clk 0:00:15.6]} 38. Kf4 {[%clk 0:00:50.6]} 38... h6
{[%clk 0:00:13.5]} 39. h5 {[%clk 0:00:49.7]} 39... gxh5 {[%clk 0:00:12.4]} 40.
Kxf5 {[%clk 0:00:50.2]} 40... h4 {[%clk 0:00:08]} 41. Kg4 {[%clk 0:00:50.1]}
41... Kf6 {[%clk 0:00:08.1]} 42. Rh5 {[%clk 0:00:47.1]} 42... Ke6 {[%clk
0:00:07.6]} 43. Kxh4 {[%clk 0:00:47.1]} 43... Kd6 {[%clk 0:00:07.7]} 44. Kg4
{[%clk 0:00:47.6]} 44... Kc6 {[%clk 0:00:08.2]} 45. Kf4 {[%clk 0:00:48.1]} 45...
Re7 {[%clk 0:00:08.3]} 46. a4 {[%clk 0:00:43.8]} 46... bxa4 {[%clk 0:00:05.9]}
47. Rxa5 {[%clk 0:00:43.9]} 47... Rh7 {[%clk 0:00:02.9]} 48. Rxa4 {[%clk
0:00:41.1]} 48... Kb5 {[%clk 0:00:03.1]} 49. Ra1 {[%clk 0:00:39.8]} 49... Kc5
{[%clk 0:00:03.6]} 50. Kg4 {[%clk 0:00:37.9]} 50... Kd5 {[%clk 0:00:04]} 51. Kh5
{[%clk 0:00:38.2]} 51... Ke5 {[%clk 0:00:04.4]} 52. Kg6 {[%clk 0:00:38.3]} 52...
Rh8 {[%clk 0:00:04.9]} 53. Rh1 {[%clk 0:00:38]} 53... h5 {[%clk 0:00:04.6]} 54.
Rxh5+ {[%clk 0:00:37.5]} 54... Rxh5 {[%clk 0:00:04.8]} 55. Kxh5 {[%clk
0:00:37.6]} 1/2-1/2

[Event "Late-Titled-Tuesday-Blitz-March-12-2024"]
[Site "Chess.com"]
[Date "2024.03.12"]
[Round "9"]
[White "Yeritsyaan"]
[Black "Zhigalko_Sergei"]
[Result "0-1"]
[WhiteElo "2645"]
[BlackElo "2859"]
[TimeControl "180+1"]
[EndTime "15:42:51 PDT"]
[Termination "Zhigalko_Sergei won by resignation"]

1. d4 {[%clk 0:02:58.9]} 1... Nf6 {[%clk 0:02:58.7]} 2. c4 {[%clk 0:02:59.3]}
2... e6 {[%clk 0:02:58.5]} 3. Nf3 {[%clk 0:02:58.8]} 3... b6 {[%clk 0:02:58.5]}
4. e3 {[%clk 0:02:55.3]} 4... Bb7 {[%clk 0:02:58.4]} 5. Nc3 {[%clk 0:02:55.5]}
5... d5 {[%clk 0:02:58.6]} 6. Bd3 {[%clk 0:02:55]} 6... Bd6 {[%clk 0:02:58.6]}
7. O-O {[%clk 0:02:54.7]} 7... O-O {[%clk 0:02:58.2]} 8. cxd5 {[%clk 0:02:54.7]}
8... exd5 {[%clk 0:02:59.1]} 9. b3 {[%clk 0:02:53.7]} 9... Nbd7 {[%clk
0:02:58.8]} 10. Bb2 {[%clk 0:02:53.7]} 10... a6 {[%clk 0:02:58.6]} 11. Rc1
{[%clk 0:02:53.4]} 11... Qe7 {[%clk 0:02:55.9]} 12. Ne2 {[%clk 0:02:52.2]} 12...
Ne4 {[%clk 0:02:50.4]} 13. Ng3 {[%clk 0:02:52.3]} 13... g6 {[%clk 0:02:48.8]}
14. Bxe4 {[%clk 0:02:46.8]} 14... dxe4 {[%clk 0:02:48.4]} 15. Nd2 {[%clk
0:02:47.5]} 15... b5 {[%clk 0:02:44.9]} 16. Qc2 {[%clk 0:02:38.8]} 16... Rae8
{[%clk 0:02:37.9]} 17. Rfd1 {[%clk 0:02:19.1]} 17... h5 {[%clk 0:02:36.5]} 18.
Ndf1 {[%clk 0:02:08.8]} 18... h4 {[%clk 0:02:24.7]} 19. Ne2 {[%clk 0:02:09]}
19... h3 {[%clk 0:02:25]} 20. gxh3 {[%clk 0:02:00.2]} 20... Bd5 {[%clk
0:01:59.4]} 21. Nc3 {[%clk 0:01:53.2]} 21... Nb6 {[%clk 0:01:48.4]} 22. Qe2
{[%clk 0:01:50.1]} 22... f5 {[%clk 0:01:39.3]} 23. Nxd5 {[%clk 0:01:30.2]} 23...
Nxd5 {[%clk 0:01:39.5]} 24. a4 {[%clk 0:01:30.9]} 24... Qd7 {[%clk 0:01:28.8]}
25. axb5 {[%clk 0:01:26.6]} 25... axb5 {[%clk 0:01:29.7]} 26. Rc5 {[%clk
0:01:21.9]} 26... c6 {[%clk 0:01:19.6]} 27. Rdc1 {[%clk 0:01:16.3]} 27... Bxc5
{[%clk 0:01:14.7]} 28. dxc5 {[%clk 0:01:13.4]} 28... Rf7 {[%clk 0:00:51.7]} 29.
Qd2 {[%clk 0:01:07.2]} 29... f4 {[%clk 0:00:44.8]} 30. exf4 {[%clk 0:00:22.2]}
30... Qxh3 {[%clk 0:00:29.9]} 31. Be5 {[%clk 0:00:14.4]} 31... Qg4+ {[%clk
0:00:22.4]} 32. Ng3 {[%clk 0:00:14]} 32... Nxf4 {[%clk 0:00:22.9]} 33. Bxf4
{[%clk 0:00:14.1]} 33... Qxf4 {[%clk 0:00:23.8]} 34. Qc3 {[%clk 0:00:09.9]}
34... Qxf2+ {[%clk 0:00:20.3]} 35. Kh1 {[%clk 0:00:09.7]} 35... Qf3+ {[%clk
0:00:20.6]} 36. Qxf3 {[%clk 0:00:08.3]} 36... exf3 {[%clk 0:00:21.5]} 37. Kg1
{[%clk 0:00:08.4]} 37... f2+ {[%clk 0:00:21.1]} 38. Kf1 {[%clk 0:00:08.7]} 38...
Re3 {[%clk 0:00:21]} 39. b4 {[%clk 0:00:07.4]} 39... Rb3 {[%clk 0:00:19.3]} 40.
Ne4 {[%clk 0:00:05.5]} 40... Rxb4 {[%clk 0:00:19.4]} 41. Nd6 {[%clk 0:00:04.2]}
41... Rff4 {[%clk 0:00:18.6]} 42. Nc8 {[%clk 0:00:03.5]} 42... Kf8 {[%clk
0:00:15.5]} 43. Na7 {[%clk 0:00:03.5]} 43... Rbc4 {[%clk 0:00:15]} 44. Rd1
{[%clk 0:00:02.4]} 44... Rxc5 {[%clk 0:00:14.7]} 45. Nc8 {[%clk 0:00:03.1]}
45... Re5 {[%clk 0:00:14.1]} 46. Nd6 {[%clk 0:00:03.3]} 0-1

[Event "Late-Titled-Tuesday-Blitz-March-12-2024"]
[Site "Chess.com"]
[Date "2024.03.12"]
[Round "9"]
[White "CrushingKings"]
[Black "sorch29"]
[Result "0-1"]
[WhiteElo "2588"]
[BlackElo "2475"]
[TimeControl "180+1"]
[EndTime "15:42:54 PDT"]
[Termination "sorch29 won on time"]

1. Nf3 {[%clk 0:03:00.9]} 1... Nf6 {[%clk 0:02:59.1]} 2. g3 {[%clk 0:03:01.3]}
2... g6 {[%clk 0:02:59.3]} 3. b3 {[%clk 0:03:01.9]} 3... Bg7 {[%clk 0:02:59.4]}
4. Bb2 {[%clk 0:03:02]} 4... d6 {[%clk 0:02:59.4]} 5. d4 {[%clk 0:03:01.9]} 5...
O-O {[%clk 0:02:58.7]} 6. Bg2 {[%clk 0:03:00.6]} 6... e5 {[%clk 0:02:50.6]} 7.
dxe5 {[%clk 0:02:59.9]} 7... Ng4 {[%clk 0:02:50]} 8. c4 {[%clk 0:02:57.3]} 8...
Nxe5 {[%clk 0:02:43.9]} 9. Nc3 {[%clk 0:02:56.1]} 9... Nxf3+ {[%clk 0:02:37.4]}
10. Bxf3 {[%clk 0:02:54.8]} 10... Nc6 {[%clk 0:02:37.5]} 11. O-O {[%clk
0:02:54.7]} 11... Be6 {[%clk 0:02:35.5]} 12. Qd2 {[%clk 0:02:51.8]} 12... a6
{[%clk 0:02:27.4]} 13. Rfe1 {[%clk 0:02:50.2]} 13... Rb8 {[%clk 0:02:24.6]} 14.
Rad1 {[%clk 0:02:49.1]} 14... Ne5 {[%clk 0:02:20.2]} 15. Bg2 {[%clk 0:02:49]}
15... b5 {[%clk 0:02:20.5]} 16. cxb5 {[%clk 0:02:37.7]} 16... axb5 {[%clk
0:02:21.4]} 17. f4 {[%clk 0:02:37.9]} 17... Nd7 {[%clk 0:02:09.8]} 18. e4 {[%clk
0:02:26.5]} 18... b4 {[%clk 0:02:00.6]} 19. Ne2 {[%clk 0:02:20.3]} 19... Bxb2
{[%clk 0:02:00]} 20. Qxb2 {[%clk 0:02:20.4]} 20... Qf6 {[%clk 0:02:00.8]} 21. e5
{[%clk 0:02:15.1]} 21... dxe5 {[%clk 0:01:59.9]} 22. fxe5 {[%clk 0:02:15.1]}
22... Qxe5 {[%clk 0:01:58]} 23. Nd4 {[%clk 0:02:15.3]} 23... Qc5 {[%clk
0:01:57.8]} 24. Kh1 {[%clk 0:02:15.4]} 24... Bd5 {[%clk 0:01:55.8]} 25. Nf3
{[%clk 0:02:10.1]} 25... Nb6 {[%clk 0:01:48.8]} 26. Qf6 {[%clk 0:01:54.4]} 26...
Rfe8 {[%clk 0:01:38]} 27. Re5 {[%clk 0:01:35.2]} 27... Qc6 {[%clk 0:01:30]} 28.
Qf4 {[%clk 0:01:17.2]} 28... Rxe5 {[%clk 0:01:27.1]} 29. Nxe5 {[%clk 0:01:18.1]}
29... Bxg2+ {[%clk 0:01:27]} 30. Kg1 {[%clk 0:01:18.8]} 30... Qe6 {[%clk
0:01:12.2]} 31. Kxg2 {[%clk 0:01:18.5]} 31... Re8 {[%clk 0:01:11.7]} 32. Re1
{[%clk 0:01:07]} 32... Nd5 {[%clk 0:01:09.4]} 33. Qd4 {[%clk 0:00:58.9]} 33...
c6 {[%clk 0:00:43.2]} 34. Nf3 {[%clk 0:00:50.3]} 34... Qc8 {[%clk 0:00:43.1]}
35. Re5 {[%clk 0:00:35.3]} 35... Qa8 {[%clk 0:00:41]} 36. Kh3 {[%clk 0:00:30.9]}
36... Qc8+ {[%clk 0:00:37.8]} 37. Kg2 {[%clk 0:00:30]} 37... Qa8 {[%clk
0:00:37.4]} 38. Kh3 {[%clk 0:00:27.4]} 38... Qc8+ {[%clk 0:00:31.6]} 39. g4
{[%clk 0:00:14.1]} 39... Qb8 {[%clk 0:00:24.5]} 40. Kg2 {[%clk 0:00:08.6]} 40...
f6 {[%clk 0:00:22.4]} 41. Re4 {[%clk 0:00:04.5]} 41... Rd8 {[%clk 0:00:20.9]}
42. Qc5 {[%clk 0:00:02.5]} 42... Qd6 {[%clk 0:00:15.3]} 43. Qxd6 {[%clk
0:00:02.3]} 43... Rxd6 {[%clk 0:00:15.5]} 44. Nd4 {[%clk 0:00:02.1]} 44... Nc3
{[%clk 0:00:12.9]} 45. Re6 {[%clk 0:00:01.2]} 45... Rxe6 {[%clk 0:00:12.1]} 0-1

[Event "Late-Titled-Tuesday-Blitz-March-12-2024"]
[Site "Chess.com"]
[Date "2024.03.12"]
[Round "9"]
[White "APOKALIPSA13"]
[Black "BebeBonito2022"]
[Result "0-1"]
[WhiteElo "2200"]
[BlackElo "2308"]
[TimeControl "180+1"]
[EndTime "15:42:56 PDT"]
[Termination "BebeBonito2022 won by resignation"]

1. d4 {[%clk 0:03:00]} 1... Nf6 {[%clk 0:02:59.6]} 2. c4 {[%clk 0:02:59.6]} 2...
e6 {[%clk 0:02:59.7]} 3. Nc3 {[%clk 0:03:00.5]} 3... Bb4 {[%clk 0:02:59.7]} 4.
g3 {[%clk 0:03:01.1]} 4... d5 {[%clk 0:02:57.5]} 5. Bg2 {[%clk 0:03:00.6]} 5...
O-O {[%clk 0:02:50.5]} 6. Bg5 {[%clk 0:02:59.1]} 6... c6 {[%clk 0:02:49.8]} 7.
e4 {[%clk 0:02:57.5]} 7... dxe4 {[%clk 0:02:43]} 8. Bxe4 {[%clk 0:02:58.4]} 8...
h6 {[%clk 0:02:39.6]} 9. Bc2 {[%clk 0:02:57]} 9... Nbd7 {[%clk 0:02:29.2]} 10.
h4 {[%clk 0:02:42.9]} 10... Qa5 {[%clk 0:02:22.2]} 11. Ne2 {[%clk 0:02:17.8]}
11... e5 {[%clk 0:02:21.9]} 12. a3 {[%clk 0:02:07.1]} 12... Bxc3+ {[%clk
0:02:20]} 13. bxc3 {[%clk 0:02:06.7]} 13... exd4 {[%clk 0:02:19.3]} 14. Bd2
{[%clk 0:02:00.2]} 14... d3 {[%clk 0:02:08]} 15. Bxd3 {[%clk 0:01:58.9]} 15...
Ne5 {[%clk 0:02:04.6]} 16. Bb1 {[%clk 0:01:52.7]} 16... Nf3+ {[%clk 0:01:51.5]}
17. Kf1 {[%clk 0:01:51.4]} 17... Rd8 {[%clk 0:01:26.9]} 18. Nd4 {[%clk
0:01:50.5]} 18... Nxd2+ {[%clk 0:01:26]} 19. Qxd2 {[%clk 0:01:49.7]} 19... c5
{[%clk 0:01:26.2]} 20. Nb3 {[%clk 0:01:42.2]} 20... Rxd2 {[%clk 0:01:06]} 21.
Nxa5 {[%clk 0:01:41]} 21... b6 {[%clk 0:01:06.4]} 22. Nb3 {[%clk 0:01:34.1]}
22... Rd1+ {[%clk 0:01:06]} 23. Ke2 {[%clk 0:01:31.3]} 23... Rxh1 {[%clk
0:01:01.8]} 24. Bh7+ {[%clk 0:01:30.7]} 24... Kxh7 {[%clk 0:01:00.6]} 25. Rxh1
{[%clk 0:01:31.6]} 25... Bb7 {[%clk 0:00:57]} 26. Rd1 {[%clk 0:01:31.3]} 26...
Re8+ {[%clk 0:00:56.5]} 27. Kf1 {[%clk 0:01:26.8]} 27... Ba6 {[%clk 0:00:56.1]}
28. Nd2 {[%clk 0:01:24]} 28... Rd8 {[%clk 0:00:54.5]} 29. Ke2 {[%clk 0:01:22.6]}
29... Re8+ {[%clk 0:00:35.9]} 30. Kd3 {[%clk 0:01:19.9]} 30... Ng4 {[%clk
0:00:32.7]} 31. Rf1 {[%clk 0:01:14.7]} 31... Rd8+ {[%clk 0:00:28]} 32. Kc2
{[%clk 0:01:11.8]} 32... Ne5 {[%clk 0:00:24.4]} 33. Re1 {[%clk 0:01:08.9]} 33...
Nxc4 {[%clk 0:00:20.7]} 34. Nxc4 {[%clk 0:00:57.4]} 34... Bxc4 {[%clk
0:00:20.6]} 35. Re7 {[%clk 0:00:58]} 35... a6 {[%clk 0:00:18.4]} 36. Rb7 {[%clk
0:00:53.8]} 36... Rd6 {[%clk 0:00:18.7]} 37. a4 {[%clk 0:00:51.7]} 37... Rf6
{[%clk 0:00:18.2]} 38. f4 {[%clk 0:00:51.5]} 38... Re6 {[%clk 0:00:16.9]} 39.
Kd2 {[%clk 0:00:44.2]} 39... Re2+ {[%clk 0:00:16.1]} 40. Kd1 {[%clk 0:00:43.2]}
40... b5 {[%clk 0:00:16]} 41. axb5 {[%clk 0:00:38.6]} 41... axb5 {[%clk
0:00:16.3]} 42. Rxf7 {[%clk 0:00:35.9]} 42... Bxf7 {[%clk 0:00:15.2]} 43. Kxe2
{[%clk 0:00:35.8]} 43... h5 {[%clk 0:00:12.5]} 44. Kd3 {[%clk 0:00:30.4]} 44...
Kg6 {[%clk 0:00:12.7]} 45. Ke4 {[%clk 0:00:30.2]} 45... Kf6 {[%clk 0:00:13.1]}
46. f5 {[%clk 0:00:21.6]} 46... b4 {[%clk 0:00:13.3]} 47. cxb4 {[%clk
0:00:20.4]} 47... cxb4 {[%clk 0:00:13.8]} 48. Kd4 {[%clk 0:00:18.2]} 48... Kxf5
{[%clk 0:00:14]} 49. Kc5 {[%clk 0:00:18.2]} 49... b3 {[%clk 0:00:14.3]} 0-1